[Event "Titled Tuesday Blitz May 2 Late 2023"]
[White "Bruedigam, Martin"]
[Black "Petrovic, Aleksa"]
[WhiteFideId "24608033"]
[BlackFideId "967629"]
[WhiteElo "2331"]
[BlackElo "2309"]
[Result "0-1"]
[Round "09"]
[TimeControl "180+2"]
[Date "2023.05.02"]
[WhiteClock "0:00:06"]
[BlackClock "0:00:03"]

1. d4 {[%clk 0:03:00]}  Nf6 {[%clk 0:02:58]} 2. c4 {[%clk 0:03:01]}  e6 {[%clk 0:02:50]} 3. Nc3 {[%clk 0:03:00]}  Bb4 {[%clk 0:02:49]} 4. Bd2 {[%clk 0:03:00]}  O-O {[%clk 0:02:49]} 5. e3 {[%clk 0:03:00]}  d5 {[%clk 0:02:48]} 6. Nf3 {[%clk 0:03:01]}  Nc6 {[%clk 0:02:48]} 7. Bd3 {[%clk 0:02:58]}  a6 {[%clk 0:02:46]} 8. O-O {[%clk 0:02:57]}  dxc4 {[%clk 0:02:45]} 9. Bxc4 {[%clk 0:02:57]}  Bd6 {[%clk 0:02:41]} 10. e4 {[%clk 0:02:55]}  e5 {[%clk 0:02:32]} 11. d5 {[%clk 0:02:55]}  Ne7 {[%clk 0:02:30]} 12. h3 {[%clk 0:02:55]}  Ng6 {[%clk 0:02:30]} 13. Re1 {[%clk 0:02:53]}  h6 {[%clk 0:02:28]} 14. a3 {[%clk 0:02:47]}  Nh7 {[%clk 0:02:26]} 15. Ne2 {[%clk 0:02:32]}  Nh4 {[%clk 0:02:08]} 16. Nxh4 {[%clk 0:02:30]}  Qxh4 {[%clk 0:02:09]} 17. Ng3 {[%clk 0:02:28]}  Ng5 {[%clk 0:02:03]} 18. Bf1 {[%clk 0:02:12]}  Bc5 {[%clk 0:01:45]} 19. Be3 {[%clk 0:02:11]}  Bxe3 {[%clk 0:01:43]} 20. Rxe3 {[%clk 0:02:12]}  Bd7 {[%clk 0:01:35]} 21. Rc1 {[%clk 0:02:11]}  c6 {[%clk 0:01:31]} 22. Rb3 {[%clk 0:01:59]}  cxd5 {[%clk 0:01:28]} 23. exd5 {[%clk 0:01:53]}  f5 {[%clk 0:01:20]} 24. Rxb7 {[%clk 0:01:51]}  Bc8 {[%clk 0:01:13]} 25. Rb4 {[%clk 0:01:37]}  f4 {[%clk 0:01:12]} 26. d6 {[%clk 0:01:35]}  a5 {[%clk 0:01:01]} 27. Rbc4 {[%clk 0:01:13]}  Be6 {[%clk 0:01:00]} 28. Ne4 {[%clk 0:00:44]}  Bxc4 {[%clk 0:00:54]} 29. Bxc4+ {[%clk 0:00:43]}  Kh8 {[%clk 0:00:54]} 30. Nxg5 {[%clk 0:00:42]}  Qxg5 {[%clk 0:00:55]} 31. d7 {[%clk 0:00:24]}  f3 {[%clk 0:00:51]} 32. g3 {[%clk 0:00:24]}  e4 {[%clk 0:00:47]} 33. Rc3 {[%clk 0:00:18]}  Rad8 {[%clk 0:00:44]} 34. a4 {[%clk 0:00:19]}  h5 {[%clk 0:00:38]} 35. Bb5 {[%clk 0:00:18]}  h4 {[%clk 0:00:37]} 36. g4 {[%clk 0:00:18]}  Rf4 {[%clk 0:00:31]} 37. Kh1 {[%clk 0:00:17]}  Qe5 {[%clk 0:00:20]} 38. Qd2 {[%clk 0:00:17]}  Rf6 {[%clk 0:00:17]} 39. Rc8 {[%clk 0:00:16]}  Rff8 {[%clk 0:00:16]} 40. Rxd8 {[%clk 0:00:16]}  Rxd8 {[%clk 0:00:16]} 41. Qxa5 {[%clk 0:00:16]}  Qg5 {[%clk 0:00:09]} 42. Qb6 {[%clk 0:00:15]}  Qc1+ {[%clk 0:00:09]} 43. Kh2 {[%clk 0:00:15]}  Qf4+ {[%clk 0:00:09]} 44. Kg1 {[%clk 0:00:16]}  Qg5 {[%clk 0:00:06]} 45. Qc7 {[%clk 0:00:14]}  e3 {[%clk 0:00:05]} 46. fxe3 {[%clk 0:00:14]}  Qxe3+ {[%clk 0:00:05]} 47. Kf1 {[%clk 0:00:14]}  Qe7 {[%clk 0:00:05]} 48. Qc3 {[%clk 0:00:12]}  Rf8 {[%clk 0:00:04]} 49. Kf2 {[%clk 0:00:11]}  Qd6 {[%clk 0:00:03]} 50. Qe3 {[%clk 0:00:09]}  Qh2+ {[%clk 0:00:03]} 51. Ke1 {[%clk 0:00:07]}  f2+ {[%clk 0:00:02]} 52. Kd1 {[%clk 0:00:06]}  f1=Q+ {[%clk 0:00:03]} 0-1


[Site "https://www.chess.com"]

[Event "Titled Tuesday Blitz May 2 Late 2023"]
[White "Dobrowolski, Piotr"]
[Black "Prydun, Andriy"]
[WhiteFideId "1106236"]
[BlackFideId "14145898"]
[WhiteElo "2320"]
[BlackElo "2164"]
[Result "0-1"]
[Round "09"]
[TimeControl "180+2"]
[Date "2023.05.02"]
[WhiteClock "0:00:01"]
[BlackClock "0:00:03"]

1. e4 {[%clk 0:03:00]}  c6 {[%clk 0:02:52]} 2. c4 {[%clk 0:02:59]}  e6 {[%clk 0:02:43]} 3. d4 {[%clk 0:02:57]}  d5 {[%clk 0:02:43]} 4. Nc3 {[%clk 0:02:57]}  Nf6 {[%clk 0:02:42]} 5. e5 {[%clk 0:02:55]}  Nfd7 {[%clk 0:02:41]} 6. Nf3 {[%clk 0:02:53]}  Be7 {[%clk 0:02:39]} 7. cxd5 {[%clk 0:02:46]}  cxd5 {[%clk 0:02:39]} 8. Bd3 {[%clk 0:02:46]}  Nc6 {[%clk 0:02:38]} 9. a3 {[%clk 0:02:44]}  f6 {[%clk 0:02:37]} 10. exf6 {[%clk 0:02:35]}  Bxf6 {[%clk 0:02:36]} 11. O-O {[%clk 0:02:30]}  O-O {[%clk 0:02:33]} 12. Re1 {[%clk 0:02:29]}  e5 {[%clk 0:01:38]} 13. Nxd5 {[%clk 0:02:25]}  exd4 {[%clk 0:01:36]} 14. Bc4 {[%clk 0:02:10]}  Kh8 {[%clk 0:01:33]} 15. Nxf6 {[%clk 0:02:09]}  Nxf6 {[%clk 0:01:33]} 16. Ng5 {[%clk 0:02:06]}  Qc7 {[%clk 0:01:21]} 17. Qf3 {[%clk 0:01:27]}  Ne5 {[%clk 0:01:16]} 18. Rxe5 {[%clk 0:01:26]}  Qxe5 {[%clk 0:01:16]} 19. Bf4 {[%clk 0:01:27]}  Qc5 {[%clk 0:00:59]} 20. Nf7+ {[%clk 0:01:20]}  Rxf7 {[%clk 0:00:59]} 21. Bxf7 {[%clk 0:01:20]}  Bg4 {[%clk 0:00:59]} 22. Qb3 {[%clk 0:01:16]}  Qe7 {[%clk 0:00:47]} 23. h3 {[%clk 0:01:11]}  Bf5 {[%clk 0:00:44]} 24. Rc1 {[%clk 0:01:08]}  d3 {[%clk 0:00:43]} 25. g4 {[%clk 0:00:55]}  Be4 {[%clk 0:00:41]} 26. Qe6 {[%clk 0:00:54]}  Qd8 {[%clk 0:00:34]} 27. g5 {[%clk 0:00:49]}  Bd5 {[%clk 0:00:31]} 28. Qe3 {[%clk 0:00:15]}  Bxf7 {[%clk 0:00:30]} 29. gxf6 {[%clk 0:00:16]}  Qxf6 {[%clk 0:00:30]} 30. Be5 {[%clk 0:00:14]}  Qf5 {[%clk 0:00:17]} 31. f4 {[%clk 0:00:10]}  Bg6 {[%clk 0:00:11]} 32. Rc7 {[%clk 0:00:09]}  Rg8 {[%clk 0:00:11]} 33. Qd4 {[%clk 0:00:07]}  Qf8 {[%clk 0:00:08]} 34. Kf2 {[%clk 0:00:02]}  Bf5 {[%clk 0:00:08]} 35. Ke3 {[%clk 0:00:02]}  Qe8 {[%clk 0:00:05]} 36. Kd2 {[%clk 0:00:02]}  Qg6 {[%clk 0:00:04]} 37. Kc3 {[%clk 0:00:01]}  Qb6 {[%clk 0:00:03]} 0-1


[Site "https://www.chess.com"]

[Event "Titled Tuesday Blitz May 2 Late 2023"]
[White "Seletsky, Grigory"]
[Black "Jovic, Stanoje"]
[WhiteFideId "14112191"]
[BlackFideId "905020"]
[WhiteElo "2490"]
[BlackElo "2236"]
[Result "1-0"]
[Round "09"]
[TimeControl "180+2"]
[Date "2023.05.02"]
[WhiteClock "0:00:01"]
[BlackClock "0:00:05"]

1. e4 {[%clk 0:03:00]}  c6 {[%clk 0:02:59]} 2. Nc3 {[%clk 0:02:58]}  d5 {[%clk 0:02:58]} 3. d4 {[%clk 0:02:59]}  dxe4 {[%clk 0:02:58]} 4. Nxe4 {[%clk 0:03:00]}  Nf6 {[%clk 0:02:58]} 5. Nxf6+ {[%clk 0:02:59]}  exf6 {[%clk 0:02:59]} 6. c3 {[%clk 0:02:59]}  Bd6 {[%clk 0:02:59]} 7. Bd3 {[%clk 0:02:59]}  O-O {[%clk 0:02:59]} 8. Qc2 {[%clk 0:02:59]}  h5 {[%clk 0:02:59]} 9. Ne2 {[%clk 0:02:59]}  Qc7 {[%clk 0:02:59]} 10. Bd2 {[%clk 0:02:59]}  Re8 {[%clk 0:02:55]} 11. O-O-O {[%clk 0:02:59]}  c5 {[%clk 0:02:55]} 12. dxc5 {[%clk 0:02:55]}  Bxc5 {[%clk 0:02:54]} 13. f3 {[%clk 0:02:53]}  Nc6 {[%clk 0:02:51]} 14. Nf4 {[%clk 0:02:51]}  h4 {[%clk 0:02:40]} 15. g4 {[%clk 0:02:47]}  Ne5 {[%clk 0:02:28]} 16. Nd5 {[%clk 0:02:40]}  Nxd3+ {[%clk 0:02:14]} 17. Qxd3 {[%clk 0:02:38]}  Qc6 {[%clk 0:02:09]} 18. Bf4 {[%clk 0:02:29]}  Be6 {[%clk 0:01:48]} 19. Nc7 {[%clk 0:02:17]}  Red8 {[%clk 0:01:36]} 20. Qe2 {[%clk 0:01:59]}  Rxd1+ {[%clk 0:01:32]} 21. Rxd1 {[%clk 0:01:57]}  Rc8 {[%clk 0:01:31]} 22. Nxe6 {[%clk 0:01:54]}  Qxe6 {[%clk 0:01:27]} 23. Qxe6 {[%clk 0:01:52]}  fxe6 {[%clk 0:01:27]} 24. Rd7 {[%clk 0:01:53]}  g5 {[%clk 0:01:26]} 25. Bc7 {[%clk 0:01:26]}  h3 {[%clk 0:01:22]} 26. Bg3 {[%clk 0:01:20]}  b5 {[%clk 0:01:13]} 27. Kc2 {[%clk 0:01:18]}  e5 {[%clk 0:01:11]} 28. Kd3 {[%clk 0:01:18]}  b4 {[%clk 0:01:05]} 29. c4 {[%clk 0:01:16]}  Bd4 {[%clk 0:01:02]} 30. b3 {[%clk 0:01:16]}  a5 {[%clk 0:01:01]} 31. Ke4 {[%clk 0:01:16]}  a4 {[%clk 0:00:53]} 32. Kd5 {[%clk 0:01:00]}  axb3 {[%clk 0:00:52]} 33. axb3 {[%clk 0:00:58]}  Rc5+ {[%clk 0:00:47]} 34. Ke6 {[%clk 0:00:57]}  Rc6+ {[%clk 0:00:47]} 35. Kf5 {[%clk 0:00:54]}  Bc3 {[%clk 0:00:47]} 36. Bf2 {[%clk 0:00:52]}  Ra6 {[%clk 0:00:44]} 37. c5 {[%clk 0:00:51]}  Kf8 {[%clk 0:00:41]} 38. Rd6 {[%clk 0:00:49]}  Ra2 {[%clk 0:00:33]} 39. Rxf6+ {[%clk 0:00:49]}  Ke7 {[%clk 0:00:29]} 40. Bg3 {[%clk 0:00:48]}  e4 {[%clk 0:00:18]} 41. Re6+ {[%clk 0:00:47]}  Kf7 {[%clk 0:00:18]} 42. Rxe4 {[%clk 0:00:46]}  Ra6 {[%clk 0:00:18]} 43. Rc4 {[%clk 0:00:43]}  Rf6+ {[%clk 0:00:15]} 44. Kxg5 {[%clk 0:00:43]}  Rc6 {[%clk 0:00:14]} 45. Bd6 {[%clk 0:00:41]}  Ke6 {[%clk 0:00:13]} 46. Kh4 {[%clk 0:00:39]}  Kd5 {[%clk 0:00:13]} 47. Kxh3 {[%clk 0:00:39]}  Ra6 {[%clk 0:00:13]} 48. Bg3 {[%clk 0:00:34]}  Kc6 {[%clk 0:00:12]} 49. g5 {[%clk 0:00:34]}  Ra3 {[%clk 0:00:12]} 50. Kg4 {[%clk 0:00:34]}  Rxb3 {[%clk 0:00:12]} 51. g6 {[%clk 0:00:24]}  Ra3 {[%clk 0:00:12]} 52. h4 {[%clk 0:00:18]}  Kd5 {[%clk 0:00:12]} 53. Re4 {[%clk 0:00:15]}  b3 {[%clk 0:00:12]} 54. Re2 {[%clk 0:00:14]}  Ra2 {[%clk 0:00:11]} 55. Re8 {[%clk 0:00:11]}  b2 {[%clk 0:00:11]} 56. Rb8 {[%clk 0:00:11]}  Kc4 {[%clk 0:00:10]} 57. h5 {[%clk 0:00:10]}  Bb4 {[%clk 0:00:10]} 58. g7 {[%clk 0:00:05]}  b1=Q {[%clk 0:00:09]} 59. g8=Q+ {[%clk 0:00:05]}  Kc3 {[%clk 0:00:08]} 60. Be5+ {[%clk 0:00:02]}  Kd2 {[%clk 0:00:07]} 61. Rd8+ {[%clk 0:00:01]}  Ke1 {[%clk 0:00:05]} 62. Qc4 {[%clk 0:00:01]} 1-0


[Site "https://www.chess.com"]

[Event "Titled Tuesday Blitz May 2 Late 2023"]
[White "Przybylski, Wojciech"]
[Black "Leenhouts, Koen"]
[WhiteFideId "1117599"]
[BlackFideId "1008439"]
[WhiteElo "2222"]
[BlackElo "2409"]
[Result "1-0"]
[Round "09"]
[TimeControl "180+2"]
[Date "2023.05.02"]
[WhiteClock "0:00:20"]
[BlackClock "0:00:23"]

1. e4 {[%clk 0:03:00]}  c5 {[%clk 0:02:31]} 2. Nf3 {[%clk 0:01:44]}  e6 {[%clk 0:02:31]} 3. d4 {[%clk 0:01:42]}  cxd4 {[%clk 0:02:32]} 4. Nxd4 {[%clk 0:01:42]}  Nc6 {[%clk 0:02:31]} 5. Nc3 {[%clk 0:01:42]}  Qc7 {[%clk 0:02:31]} 6. g4 {[%clk 0:01:42]}  a6 {[%clk 0:02:29]} 7. Bg2 {[%clk 0:01:39]}  b5 {[%clk 0:02:27]} 8. Nxc6 {[%clk 0:01:38]}  dxc6 {[%clk 0:02:28]} 9. Be3 {[%clk 0:01:36]}  Ne7 {[%clk 0:02:28]} 10. a4 {[%clk 0:01:35]}  b4 {[%clk 0:02:26]} 11. Nb1 {[%clk 0:01:33]}  Ng6 {[%clk 0:02:26]} 12. O-O {[%clk 0:01:31]}  Bd6 {[%clk 0:02:25]} 13. h3 {[%clk 0:01:28]}  Nf4 {[%clk 0:02:25]} 14. Nd2 {[%clk 0:01:27]}  Nxg2 {[%clk 0:02:16]} 15. Kxg2 {[%clk 0:01:26]}  O-O {[%clk 0:02:01]} 16. Nc4 {[%clk 0:01:25]}  Bf4 {[%clk 0:02:01]} 17. Bc5 {[%clk 0:00:59]}  Rd8 {[%clk 0:01:54]} 18. Qf3 {[%clk 0:00:59]}  Rb8 {[%clk 0:01:42]} 19. a5 {[%clk 0:00:59]}  e5 {[%clk 0:01:35]} 20. Bb6 {[%clk 0:00:58]}  Qe7 {[%clk 0:01:30]} 21. Bxd8 {[%clk 0:00:54]}  Qxd8 {[%clk 0:01:31]} 22. Rfd1 {[%clk 0:00:50]}  Qe7 {[%clk 0:01:31]} 23. Rd3 {[%clk 0:00:41]}  Be6 {[%clk 0:01:26]} 24. Ne3 {[%clk 0:00:40]}  g6 {[%clk 0:01:20]} 25. Rad1 {[%clk 0:00:35]}  Kg7 {[%clk 0:01:19]} 26. b3 {[%clk 0:00:32]}  Qc7 {[%clk 0:01:14]} 27. Nc4 {[%clk 0:00:31]}  Bxc4 {[%clk 0:01:13]} 28. bxc4 {[%clk 0:00:31]}  Qxa5 {[%clk 0:01:14]} 29. Rd7 {[%clk 0:00:29]}  Qc5 {[%clk 0:01:09]} 30. Qd3 {[%clk 0:00:27]}  Re8 {[%clk 0:01:01]} 31. Ra1 {[%clk 0:00:26]}  a5 {[%clk 0:00:59]} 32. c3 {[%clk 0:00:23]}  Re6 {[%clk 0:00:27]} 33. cxb4 {[%clk 0:00:21]}  Qxb4 {[%clk 0:00:24]} 34. Rb1 {[%clk 0:00:21]}  Qe1 {[%clk 0:00:23]} 35. Rxe1 {[%clk 0:00:20]} 1-0


[Site "https://www.chess.com"]

[Event "Titled Tuesday Blitz May 2 Late 2023"]
[White "Bryant, Todd"]
[Black "Graif, William"]
[WhiteFideId "2031299"]
[BlackFideId "2609835"]
[WhiteElo "2075"]
[BlackElo "2205"]
[Result "1-0"]
[Round "09"]
[TimeControl "180+2"]
[Date "2023.05.02"]
[WhiteClock "0:01:08"]
[BlackClock "0:00:15"]

1. e4 {[%clk 0:03:00]}  e5 {[%clk 0:02:58]} 2. f4 {[%clk 0:02:58]}  d5 {[%clk 0:02:55]} 3. exd5 {[%clk 0:02:58]}  c6 {[%clk 0:02:55]} 4. Nc3 {[%clk 0:02:55]}  exf4 {[%clk 0:02:42]} 5. Nf3 {[%clk 0:02:55]}  Nf6 {[%clk 0:02:30]} 6. d4 {[%clk 0:02:52]}  Bd6 {[%clk 0:02:27]} 7. Bc4 {[%clk 0:02:47]}  O-O {[%clk 0:02:22]} 8. dxc6 {[%clk 0:02:46]}  Re8+ {[%clk 0:02:15]} 9. Ne2 {[%clk 0:02:37]}  Nxc6 {[%clk 0:02:13]} 10. O-O {[%clk 0:02:36]}  Bg4 {[%clk 0:01:49]} 11. c3 {[%clk 0:02:23]}  Nh5 {[%clk 0:01:45]} 12. Qb3 {[%clk 0:02:15]}  Qc7 {[%clk 0:01:38]} 13. Qc2 {[%clk 0:02:01]}  Rac8 {[%clk 0:01:31]} 14. Ng5 {[%clk 0:01:45]}  Nf6 {[%clk 0:00:55]} 15. Bxf7+ {[%clk 0:01:36]}  Kh8 {[%clk 0:00:41]} 16. Nxf4 {[%clk 0:01:11]}  Re7 {[%clk 0:00:25]} 17. Qxh7+ {[%clk 0:01:07]}  Nxh7 {[%clk 0:00:15]} 18. Ng6# {[%clk 0:01:08]} 1-0


[Site "https://www.chess.com"]

[Event "Titled Tuesday Blitz May 2 Late 2023"]
[White "Colpe, Malte"]
[Black "Ansh M Shah"]
[WhiteFideId "24623075"]
[BlackFideId "25033379"]
[WhiteElo "2289"]
[BlackElo "2084"]
[Result "0-1"]
[Round "09"]
[TimeControl "180+2"]
[Date "2023.05.02"]
[WhiteClock "0:00:11"]
[BlackClock "0:00:07"]

1. c4 {[%clk 0:02:58]}  Nf6 {[%clk 0:03:00]} 2. Nf3 {[%clk 0:02:56]}  e6 {[%clk 0:03:01]} 3. Nc3 {[%clk 0:02:56]}  d5 {[%clk 0:03:02]} 4. d4 {[%clk 0:02:54]}  Be7 {[%clk 0:03:02]} 5. Bf4 {[%clk 0:02:50]}  O-O {[%clk 0:03:03]} 6. e3 {[%clk 0:02:50]}  c6 {[%clk 0:03:02]} 7. h3 {[%clk 0:02:50]}  Nbd7 {[%clk 0:03:00]} 8. cxd5 {[%clk 0:02:50]}  exd5 {[%clk 0:02:59]} 9. Bd3 {[%clk 0:02:50]}  Re8 {[%clk 0:02:59]} 10. O-O {[%clk 0:02:50]}  Nf8 {[%clk 0:03:00]} 11. Qc2 {[%clk 0:02:48]}  Ng6 {[%clk 0:03:00]} 12. Bh2 {[%clk 0:02:48]}  Bd6 {[%clk 0:03:00]} 13. Bxd6 {[%clk 0:02:48]}  Qxd6 {[%clk 0:03:01]} 14. Rab1 {[%clk 0:02:48]}  a5 {[%clk 0:03:00]} 15. a3 {[%clk 0:02:48]}  b5 {[%clk 0:02:48]} 16. Rfe1 {[%clk 0:02:37]}  Nf8 {[%clk 0:02:30]} 17. Ne5 {[%clk 0:02:36]}  N8d7 {[%clk 0:02:30]} 18. f4 {[%clk 0:02:36]}  Nb6 {[%clk 0:02:30]} 19. b3 {[%clk 0:02:28]}  Bb7 {[%clk 0:02:27]} 20. a4 {[%clk 0:02:25]}  b4 {[%clk 0:02:05]} 21. Ne2 {[%clk 0:02:25]}  Rac8 {[%clk 0:02:05]} 22. Rbc1 {[%clk 0:02:25]}  Nbd7 {[%clk 0:02:05]} 23. Ng3 {[%clk 0:02:22]}  g6 {[%clk 0:02:05]} 24. Qe2 {[%clk 0:02:08]}  c5 {[%clk 0:02:04]} 25. Bb5 {[%clk 0:02:07]}  Re7 {[%clk 0:01:54]} 26. Rc2 {[%clk 0:01:55]}  cxd4 {[%clk 0:01:44]} 27. Rxc8+ {[%clk 0:01:53]}  Bxc8 {[%clk 0:01:44]} 28. exd4 {[%clk 0:01:53]}  Nf8 {[%clk 0:01:37]} 29. Rc1 {[%clk 0:01:51]}  Bd7 {[%clk 0:01:33]} 30. Kh2 {[%clk 0:01:39]}  Bxb5 {[%clk 0:00:56]} 31. axb5 {[%clk 0:01:39]}  Rb7 {[%clk 0:00:55]} 32. Rc6 {[%clk 0:01:37]}  Qe7 {[%clk 0:00:53]} 33. Ng4 {[%clk 0:01:20]}  Nxg4+ {[%clk 0:00:51]} 34. Qxg4 {[%clk 0:01:17]}  Rxb5 {[%clk 0:00:44]} 35. Nf5 {[%clk 0:01:16]}  Qd7 {[%clk 0:00:42]} 36. Nh6+ {[%clk 0:01:02]}  Kg7 {[%clk 0:00:42]} 37. Rc8 {[%clk 0:00:36]}  Qxg4 {[%clk 0:00:08]} 38. Nxg4 {[%clk 0:00:37]}  a4 {[%clk 0:00:08]} 39. bxa4 {[%clk 0:00:37]}  b3 {[%clk 0:00:09]} 40. Rc1 {[%clk 0:00:34]}  Rb4 {[%clk 0:00:08]} 41. Rb1 {[%clk 0:00:30]}  Rxa4 {[%clk 0:00:08]} 42. Rxb3 {[%clk 0:00:28]}  Rxd4 {[%clk 0:00:09]} 43. f5 {[%clk 0:00:24]}  gxf5 {[%clk 0:00:09]} 44. Ne3 {[%clk 0:00:24]}  Kf6 {[%clk 0:00:07]} 45. Rb6+ {[%clk 0:00:22]}  Ne6 {[%clk 0:00:08]} 46. Rd6 {[%clk 0:00:21]}  Ke5 {[%clk 0:00:07]} 47. Rd7 {[%clk 0:00:21]}  Ng5 {[%clk 0:00:05]} 48. Nc2 {[%clk 0:00:18]}  Rd2 {[%clk 0:00:04]} 49. Ne3 {[%clk 0:00:18]}  d4 {[%clk 0:00:04]} 50. Nc4+ {[%clk 0:00:18]}  Ke6 {[%clk 0:00:05]} 51. Rd6+ {[%clk 0:00:17]}  Ke7 {[%clk 0:00:04]} 52. Rd5 {[%clk 0:00:14]}  Rd1 {[%clk 0:00:04]} 53. Rxf5 {[%clk 0:00:13]}  Ne6 {[%clk 0:00:05]} 54. Rd5 {[%clk 0:00:12]}  d3 {[%clk 0:00:05]} 55. Kg3 {[%clk 0:00:10]}  Kf6 {[%clk 0:00:04]} 56. Kf2 {[%clk 0:00:10]}  Nf4 {[%clk 0:00:04]} 57. Rd6+ {[%clk 0:00:10]}  Ke7 {[%clk 0:00:03]} 58. Rd4 {[%clk 0:00:09]}  Ne6 {[%clk 0:00:04]} 59. Rd5 {[%clk 0:00:09]}  Nf4 {[%clk 0:00:04]} 60. Rd4 {[%clk 0:00:09]}  Ne6 {[%clk 0:00:04]} 61. Rd5 {[%clk 0:00:09]}  Nc7 {[%clk 0:00:05]} 62. Rd4 {[%clk 0:00:08]}  Nb5 {[%clk 0:00:05]} 63. Rd5 {[%clk 0:00:07]}  Nc3 {[%clk 0:00:06]} 64. Rd4 {[%clk 0:00:06]}  Kf6 {[%clk 0:00:05]} 65. Nb2 {[%clk 0:00:06]}  Rd2+ {[%clk 0:00:05]} 66. Kf3 {[%clk 0:00:06]}  Rxb2 {[%clk 0:00:06]} 67. Rxd3 {[%clk 0:00:05]}  Nb5 {[%clk 0:00:06]} 68. Rd5 {[%clk 0:00:05]}  Nc7 {[%clk 0:00:05]} 69. Rd6+ {[%clk 0:00:06]}  Ne6 {[%clk 0:00:06]} 70. Kg3 {[%clk 0:00:05]}  Rb3+ {[%clk 0:00:06]} 71. Kh2 {[%clk 0:00:06]}  Kg7 {[%clk 0:00:05]} 72. Rd2 {[%clk 0:00:07]}  Re3 {[%clk 0:00:05]} 73. Rf2 {[%clk 0:00:08]}  Re5 {[%clk 0:00:06]} 74. Rf3 {[%clk 0:00:08]}  Kg6 {[%clk 0:00:06]} 75. Rg3+ {[%clk 0:00:08]}  Rg5 {[%clk 0:00:06]} 76. Re3 {[%clk 0:00:09]}  h5 {[%clk 0:00:07]} 77. Re2 {[%clk 0:00:08]}  h4 {[%clk 0:00:07]} 78. Re4 {[%clk 0:00:08]}  Kh5 {[%clk 0:00:07]} 79. Re3 {[%clk 0:00:08]}  Rf5 {[%clk 0:00:08]} 80. Ra3 {[%clk 0:00:07]}  Ng5 {[%clk 0:00:08]} 81. g4+ {[%clk 0:00:07]}  hxg3+ {[%clk 0:00:08]} 82. Kxg3 {[%clk 0:00:08]}  Ne4+ {[%clk 0:00:08]} 83. Kg2 {[%clk 0:00:08]}  Ng5 {[%clk 0:00:07]} 84. Kg3 {[%clk 0:00:08]}  Ne6 {[%clk 0:00:08]} 85. Rf3 {[%clk 0:00:09]}  Rxf3+ {[%clk 0:00:08]} 86. Kxf3 {[%clk 0:00:09]}  Kh4 {[%clk 0:00:09]} 87. Ke4 {[%clk 0:00:10]}  Kxh3 {[%clk 0:00:10]} 88. Kf5 {[%clk 0:00:10]}  Kh4 {[%clk 0:00:08]} 89. Kf6 {[%clk 0:00:10]}  Nd8 {[%clk 0:00:08]} 90. Ke7 {[%clk 0:00:11]}  f5 {[%clk 0:00:07]} 0-1


[Site "https://www.chess.com"]

[Event "Titled Tuesday Blitz May 2 Late 2023"]
[White "Vaglio Munoz, Jaime"]
[Black "Goltsev, Dmitry"]
[WhiteFideId "6500145"]
[BlackFideId "24176710"]
[WhiteElo "2199"]
[BlackElo "2336"]
[Result "0-1"]
[Round "09"]
[TimeControl "180+2"]
[Date "2023.05.02"]
[WhiteClock "0:00:31"]
[BlackClock "0:01:00"]

1. Nf3 {[%clk 0:03:00]}  d5 {[%clk 0:02:59]} 2. c4 {[%clk 0:02:58]}  c6 {[%clk 0:03:00]} 3. e3 {[%clk 0:02:58]}  Nf6 {[%clk 0:03:00]} 4. b3 {[%clk 0:02:58]}  g6 {[%clk 0:03:01]} 5. Bb2 {[%clk 0:02:58]}  Bg7 {[%clk 0:03:01]} 6. Be2 {[%clk 0:02:58]}  Nh5 {[%clk 0:03:01]} 7. Bxg7 {[%clk 0:02:57]}  Nxg7 {[%clk 0:03:02]} 8. Qc1 {[%clk 0:02:56]}  O-O {[%clk 0:03:02]} 9. Qb2 {[%clk 0:02:56]}  Nd7 {[%clk 0:03:02]} 10. O-O {[%clk 0:02:55]}  f6 {[%clk 0:03:02]} 11. d3 {[%clk 0:02:55]}  e5 {[%clk 0:03:01]} 12. e4 {[%clk 0:02:55]}  d4 {[%clk 0:03:01]} 13. b4 {[%clk 0:02:54]}  Ne6 {[%clk 0:03:00]} 14. c5 {[%clk 0:02:48]}  Nf4 {[%clk 0:02:59]} 15. Na3 {[%clk 0:02:44]}  f5 {[%clk 0:02:56]} 16. exf5 {[%clk 0:02:38]}  gxf5 {[%clk 0:02:57]} 17. Rfe1 {[%clk 0:02:38]}  Qf6 {[%clk 0:02:53]} 18. Nc4 {[%clk 0:02:37]}  Kh8 {[%clk 0:02:49]} 19. Bf1 {[%clk 0:02:36]}  Rg8 {[%clk 0:02:29]} 20. g3 {[%clk 0:02:25]}  Ng6 {[%clk 0:02:15]} 21. Qe2 {[%clk 0:01:52]}  Re8 {[%clk 0:01:59]} 22. Bg2 {[%clk 0:01:49]}  e4 {[%clk 0:01:54]} 23. Nfd2 {[%clk 0:01:44]}  e3 {[%clk 0:01:49]} 24. Nd6 {[%clk 0:01:34]}  Re7 {[%clk 0:01:43]} 25. Nf3 {[%clk 0:01:30]}  f4 {[%clk 0:01:33]} 26. Qb2 {[%clk 0:01:27]}  Nde5 {[%clk 0:01:30]} 27. Ne4 {[%clk 0:01:17]}  Qg7 {[%clk 0:01:20]} 28. Nxd4 {[%clk 0:01:12]}  Nxd3 {[%clk 0:01:18]} 29. Qc3 {[%clk 0:01:09]}  exf2+ {[%clk 0:01:15]} 30. Nxf2 {[%clk 0:01:08]}  Rxe1+ {[%clk 0:01:13]} 31. Rxe1 {[%clk 0:01:05]}  Nxe1 {[%clk 0:01:14]} 32. Qxe1 {[%clk 0:00:57]}  Qxd4 {[%clk 0:01:13]} 33. Qe8+ {[%clk 0:00:56]}  Kg7 {[%clk 0:01:13]} 34. gxf4 {[%clk 0:00:49]}  Qxf4 {[%clk 0:01:07]} 35. Be4 {[%clk 0:00:38]}  Qc1+ {[%clk 0:01:02]} 36. Kg2 {[%clk 0:00:37]}  Bh3+ {[%clk 0:01:01]} 37. Kxh3 {[%clk 0:00:33]}  Rxe8 {[%clk 0:01:02]} 38. Bg2 {[%clk 0:00:31]}  Qe3+ {[%clk 0:01:00]} 0-1


[Site "https://www.chess.com"]